bitfinex/quotes_BTCUSD_20220201
["timestamp","ask_amount","ask_price","bid_price","bid_amount"]
[1643726196252,0.01879517,38947.0,38936.0,0.83857709]
[1643726196450,0.01879517,38947.0,38941.0,0.064179]
[1643726196653,0.001,38963.0,38944.0,1.25]
[1643726196850,0.001,38963.0,38951.0,0.40063131]
[1643726197249,0.001,38963.0,38952.0,0.14719218]
[1643726197450,0.09355703,38952.0,38949.0,0.06416013]
[1643726197652,0.09355703,38952.0,38946.0,0.14711917]
[1643726197858,0.09355703,38952.0,38946.0,0.01879517]
[1643726198351,0.09355703,38952.0,38946.0,0.19096191]
[1643726198751,0.14458802,38958.0,38946.0,0.19096191]
[1643726198951,0.38293145,38960.0,38946.0,0.19096191]
[1643726199153,0.001,38963.0,38953.0,0.2228485]
[1643726199408,0.001,38963.0,38953.0,0.2728485]
[1643726199600,0.09236865,38959.0,38953.0,0.2728485]
[1643726199800,0.09236865,38959.0,38953.0,0.05]
[1643726199999,0.00064037,38958.0,38953.0,0.05]
[1643726201001,0.22978203,38962.0,38953.0,0.05]
[1643726201201,0.09908395,38957.0,38953.0,0.05]
[1643726201699,0.00127435,38957.0,38953.0,0.05]
[1643726202201,0.001,38963.0,38954.0,0.23339605]
[1643726202401,0.001,38963.0,38959.0,0.27348962]
[1643726202601,0.001,38963.0,38960.0,0.59430535]
[1643726203243,0.001,38963.0,38961.0,0.1369541]
[1643726203444,0.001,38963.0,38956.0,0.3749824]
[1643726203644,0.00227435,38963.0,38954.0,0.12830847]
[1643726203845,0.00227435,38963.0,38951.0,0.24726276]
[1643726203846,0.10417051,38960.0,38951.0,0.24726276]
[1643726204045,0.00227435,38963.0,38952.0,0.348487]
[1643726204246,0.00227435,38963.0,38953.0,0.26497608]
[1643726204445,0.00227435,38963.0,38961.0,0.14218656]
[1643726204647,0.001,38963.0,38961.0,0.14218656]
[1643726205045,0.001,38963.0,38962.0,0.28827528]
[1643726205345,0.001,38963.0,38961.0,0.05]
[1643726205550,0.001,38963.0,38954.0,0.12831292]
[1643726205745,0.001,38963.0,38954.0,0.17831292]
[1643726205746,0.36081416,38963.0,38954.0,0.17831292]
[1643726206147,0.00127435,38960.0,38954.0,0.17831292]
[1643726206346,0.00127435,38960.0,38958.0,0.12846449]
[1643726206991,0.001,38963.0,38958.0,0.12846449]
[1643726207290,0.00127435,38961.0,38958.0,0.4671499]
[1643726207691,0.07901038,38960.0,38954.0,0.17831292]
[1643726207892,0.07901038,38960.0,38954.0,0.05]
[1643726208095,0.07901038,38960.0,38947.0,0.12833773]
[1643726208096,0.17901038,38960.0,38947.0,0.12833773]
[1643726208292,0.17901038,38960.0,38946.0,0.12833773]
[1643726208593,0.07863381,38951.0,38948.0,0.13236177]
[1643726208791,0.07863381,38951.0,38946.0,0.12833773]
[1643726209491,0.1,38965.0,38946.0,0.12833773]
[1643726209693,0.00127435,38950.0,38947.0,0.22387402]
[1643726209891,0.00127435,38950.0,38948.0,0.348487]
[1643726210097,0.00127435,38950.0,38941.0,0.37071206]
[1643726210296,0.25613351,38949.0,38937.0,0.2960578]
[1643726210493,0.42017458,38949.0,38937.0,0.31601391]
[1643726210746,0.05,38947.0,38937.0,0.01995611]
[1643726210943,0.00127435,38945.0,38937.0,0.01995611]
[1643726211149,0.34904041,38938.0,38937.0,0.01995611]
[1643726211354,0.69752741,38938.0,38937.0,0.01995611]
[1643726211543,0.74752741,38938.0,38937.0,0.01995611]
[1643726211743,0.84305158,38938.0,38937.0,0.01995611]
[1643726212243,0.74752741,38938.0,38929.0,0.00178799]
[1643726212445,0.314914,38937.0,38929.0,0.00178799]
[1643726212644,0.25272676,38936.0,38929.0,0.00178799]
[1643726212943,0.348487,38935.0,38929.0,0.00178799]
[1643726213144,0.314914,38936.0,38928.0,0.2267606]
[1643726213347,0.09852691,38935.0,38929.0,0.0017879]
[1643726213544,0.348487,38934.0,38929.0,0.0017879]
[1643726214403,0.348487,38934.0,38927.0,0.23451045]
[1643726214598,0.314914,38934.0,38929.0,0.00178789]
[1643726214797,0.39904041,38938.0,38933.0,0.13988848]
[1643726214998,0.348487,38937.0,38933.0,0.13988848]
[1643726215398,0.348487,38937.0,38934.0,0.26073206]
[1643726215600,0.02114638,38941.0,38934.0,0.26073206]
[1643726215601,0.0224206,38941.0,38934.0,0.26073206]
[1643726215800,0.0224206,38941.0,38935.0,0.26136634]
[1643726216005,0.5718,38961.0,38936.0,1.25]
[1643726216006,1.1553,38961.0,38936.0,1.25]
[1643726216201,0.001,38963.0,38936.0,1.25]
[1643726216202,0.051,38962.0,38938.0,0.05]
[1643726216401,0.051,38962.0,38961.0,0.14922886]
[1643726216402,0.001,38962.0,38961.0,0.14922886]
[1643726216601,0.001,38962.0,38954.0,0.06416301]
[1643726216802,0.001,38962.0,38954.0,0.30552421]
[1643726217001,0.001,38962.0,38954.0,0.06416301]
[1643726217602,0.001,38962.0,38960.0,0.1230105]
[1643726217900,0.001,38962.0,38954.0,0.30552421]
[1643726218140,0.001,38962.0,38954.0,0.12832701]
[1643726218341,0.001,38962.0,38946.0,0.2413612]
[1643726218548,0.001,38962.0,38944.0,0.2413612]
[1643726218743,0.05,38955.0,38944.0,0.2413612]
[1643726218941,0.05,38957.0,38949.0,0.1373752]
[1643726219141,0.10109236,38950.0,38941.0,0.2413612]
[1643726219341,0.10109236,38950.0,38940.0,0.21365338]
[1643726219541,0.00127117,38951.0,38940.0,0.21365338]
[1643726219943,0.05,38945.0,38940.0,0.02114638]
[1643726220144,0.41431321,38947.0,38941.0,0.17069649]
[1643726220442,0.09773271,38942.0,38941.0,0.17069649]
[1643726221049,0.09773271,38942.0,38940.0,0.02114638]
[1643726221245,0.14773271,38942.0,38940.0,0.02114638]
[1643726221445,0.59506742,38941.0,38940.0,0.02114638]
[1643726221643,1.25,38940.0,38934.0,0.00115438]
[1643726221906,0.05,38935.0,38934.0,0.00115438]
[1643726222101,0.9853233,38935.0,38934.0,0.00115438]
[1643726222300,0.97081951,38935.0,38934.0,0.00115438]
[1643726222501,0.69768,38935.0,38934.0,0.00115438]
[1643726222702,0.69768,38935.0,38923.0,0.0011]
[1643726222703,0.75726272,38935.0,38923.0,0.0011]
[1643726222904,0.75726272,38935.0,38927.0,0.00461844]
[1643726222905,0.07976265,38928.0,38927.0,0.00461844]
[1643726223202,0.03549621,38931.0,38927.0,0.00461844]
[1643726223807,0.03549621,38928.0,38927.0,0.00461844]
[1643726224005,0.03549621,38930.0,38925.0,0.2255303]
[1643726224205,0.14919766,38937.0,38925.0,0.2255303]
[1643726224206,0.14919766,38937.0,38927.0,0.00179025]
[1643726224405,0.03549621,38930.0,38927.0,0.00179025]
[1643726224606,0.0838334,38933.0,38927.0,0.00179025]
[1643726224805,0.03549621,38930.0,38927.0,0.00179025]
[1643726225006,0.03492672,38938.0,38927.0,0.00121975]
[1643726225206,0.03492672,38938.0,38935.0,0.00028273]
[1643726225405,0.00071727,38935.0,38927.0,1.81949337]
[1643726225644,0.00071727,38935.0,38927.0,0.05115391]
[1643726225645,0.03,38928.0,38927.0,0.05115391]
[1643726225853,0.03,38928.0,38927.0,0.00115391]
[1643726226251,0.03,38928.0,38926.0,0.065309]
[1643726226446,0.03,38928.0,38927.0,1.81920691]
[1643726226646,0.03,38928.0,38927.0,0.348487]
[1643726226850,0.03,38928.0,38927.0,0.05]
[1643726227147,0.03,38928.0,38926.0,0.0011]
[1643726228152,0.03492672,38927.0,38926.0,0.0011]
[1643726228351,1.68765064,38927.0,38926.0,0.0011]
[1643726228551,0.73765064,38927.0,38926.0,0.0011]
[1643726228752,0.88285323,38927.0,38926.0,0.0011]
[1643726229599,1.25,38926.0,38923.0,0.0011]
[1643726229798,0.60067837,38925.0,38923.0,0.0011]
[1643726229997,0.2572935,38924.0,38923.0,0.0011]
[1643726230199,0.16627493,38917.0,38915.0,0.0011]
[1643726230399,0.09406041,38919.0,38915.0,0.0011]
[1643726230600,0.03492672,38923.0,38915.0,0.0011]
[1643726231499,0.13228219,38918.0,38915.0,0.0011]
[1643726231802,0.03492672,38918.0,38915.0,0.0011]
[1643726232000,0.21504227,38917.0,38915.0,0.0011]
[1643726232199,0.03492672,38918.0,38915.0,0.0011]
[1643726232401,0.03492672,38918.0,38913.0,0.4711]
[1643726232402,0.13726779,38916.0,38899.0,1.61208196]
[1643726232603,0.1,38900.0,38899.0,1.86681835]
[1643726232803,0.1,38900.0,38899.0,1.47959295]
[1643726233140,0.1,38900.0,38899.0,1.17959295]
[1643726233343,0.1,38900.0,38899.0,0.87959295]
[1643726233544,0.1,38900.0,38899.0,0.0011]
[1643726233742,0.1,38900.0,38899.0,0.03961773]
[1643726233947,0.548937,38900.0,38899.0,0.0011]
[1643726234143,0.548937,38900.0,38899.0,0.02978574]
[1643726234548,0.548937,38900.0,38895.0,0.0011]
[1643726234549,1.25,38898.0,38895.0,0.0011]
[1643726234749,0.2,38896.0,38895.0,0.0011]
[1643726234945,0.80774504,38896.0,38895.0,0.0011]
[1643726235144,0.592037,38896.0,38895.0,0.0011]
[1643726235343,0.0780728,38889.0,38886.0,0.0011]
[1643726235544,0.2,38889.0,38886.0,0.0011]
[1643726235743,0.61563703,38889.0,38886.0,0.0011]
[1643726235945,0.1,38889.0,38886.0,0.0011]
[1643726236145,0.1,38889.0,38883.0,0.05601545]
[1643726236346,0.02063345,38889.0,38883.0,0.07434371]
[1643726236549,0.02063345,38889.0,38888.0,1.378529]
[1643726236914,0.02063345,38889.0,38884.0,0.00684108]
[1643726236915,0.02063345,38889.0,38887.0,0.22776201]
[1643726237203,0.02063345,38889.0,38884.0,0.06426204]
[1643726237402,0.05,38885.0,38880.0,0.06222261]
[1643726237605,0.30780338,38888.0,38876.0,0.0005612]
[1643726237804,0.05,38877.0,38876.0,1.2e-06]
[1643726238203,0.498937,38877.0,38876.0,1.2e-06]
[1643726238405,0.398937,38877.0,38876.0,1.2e-06]
[1643726238607,0.498937,38877.0,38876.0,1.2e-06]
[1643726238809,0.498937,38877.0,38864.0,0.001]
[1643726238810,1.25,38875.0,38874.0,2.4e-06]
[1643726239007,1.25,38875.0,38860.0,0.02007114]
[1643726239008,1.25,38874.0,38860.0,0.02007114]
[1643726239208,0.05,38861.0,38860.0,0.02007114]
[1643726239405,0.7850405,38861.0,38860.0,0.02007114]
[1643726239604,0.71084427,38861.0,38860.0,0.02007114]
[1643726239803,0.27040184,38861.0,38860.0,0.02007114]
[1643726240004,0.348937,38863.0,38860.0,0.02007114]
[1643726240206,0.348953,38866.0,38860.0,0.02007114]
[1643726240641,0.348953,38866.0,38861.0,0.22148882]
[1643726240843,0.30137826,38863.0,38860.0,0.02007114]
[1643726241045,0.0431,38869.0,38860.0,0.02007114]
[1643726241246,0.00066061,38871.0,38860.0,0.02007114]
[1643726241441,0.00066061,38871.0,38845.0,0.46796264]
[1643726241442,0.75,38870.0,38845.0,0.46796264]
[1643726241641,0.00066061,38871.0,38846.0,0.10146198]
[1643726241846,0.25780338,38873.0,38868.0,0.24346716]
[1643726242043,0.00066056,38871.0,38868.0,0.23846716]
[1643726242242,0.08957213,38866.0,38862.0,0.05]
[1643726242441,0.00066056,38871.0,38862.0,0.05]
[1643726242642,0.348953,38870.0,38856.0,0.34751102]
[1643726242842,0.25846394,38871.0,38856.0,0.39751102]
[1643726243042,0.12174067,38864.0,38853.0,0.05]
[1643726243242,0.25780338,38871.0,38862.0,0.00176543]
[1643726243243,0.27037032,38863.0,38862.0,0.00176543]
[1643726243441,0.43304824,38863.0,38862.0,0.00176543]
[1643726244040,0.43304824,38863.0,38856.0,0.00382823]
[1643726244041,0.6,38862.0,38856.0,0.00382823]
[1643726244242,0.08409524,38863.0,38848.0,0.005613]
[1643726244523,0.07726046,38857.0,38854.0,0.21699289]
[1643726244715,0.07726046,38857.0,38849.0,0.15672986]
[1643726244915,0.08397578,38851.0,38849.0,0.15672986]
[1643726245115,0.12481629,38861.0,38849.0,0.20672986]
[1643726245317,0.21101548,38862.0,38846.0,0.00146198]
[1643726245318,0.41067586,38853.0,38846.0,0.00146198]
[1643726245723,0.66160692,38852.0,38846.0,0.00146198]
[1643726245922,0.348953,38852.0,38846.0,0.00146198]
[1643726246117,0.0431,38861.0,38846.0,0.00146198]
[1643726246318,0.0431,38861.0,38850.0,0.15277277]
[1643726246519,0.348953,38860.0,38850.0,0.15277277]
[1643726246716,0.348953,38863.0,38846.0,0.00146198]
[1643726247120,0.128723,38860.0,38846.0,0.00146198]
[1643726247316,0.348953,38859.0,38846.0,0.00146198]
[1643726247819,0.28361576,38849.0,38846.0,0.00146198]
[1643726248018,0.28361576,38849.0,38834.0,0.02229744]
[1643726248019,0.09934325,38847.0,38834.0,0.02229744]
[1643726248256,1.39934325,38845.0,38834.0,0.0011]
[1643726248453,0.74433414,38844.0,38834.0,0.0011]
[1643726248650,0.41161057,38835.0,38834.0,0.0011]
[1643726248852,0.448953,38835.0,38834.0,0.0011]
[1643726249051,0.348953,38835.0,38834.0,0.0011]
[1643726249252,0.448953,38835.0,38834.0,0.0011]
[1643726249453,0.448953,38835.0,38822.0,0.0011]
[1643726249454,1.25,38834.0,38822.0,0.0011]
[1643726249662,0.05,38831.0,38822.0,0.0011]
[1643726249855,0.05,38831.0,38800.0,0.99511052]
[1643726249856,0.09934325,38827.0,38800.0,0.99511052]
[1643726250058,0.09934325,38817.0,38801.0,0.16200668]
[1643726250256,0.37314484,38802.0,38801.0,0.16200668]
[1643726250556,0.70208209,38816.0,38801.0,0.16200668]
[1643726250557,0.128877,38816.0,38801.0,0.16200668]
[1643726250755,0.448953,38815.0,38810.0,0.0011]
[1643726250954,0.348953,38815.0,38810.0,0.0011]
[1643726251153,0.33306036,38813.0,38810.0,0.0011]
[1643726251352,0.13563103,38811.0,38810.0,0.0011]
[1643726251554,0.05,38809.0,38802.0,0.38635]
[1643726251760,0.05,38809.0,38776.0,0.1]
[1643726251761,0.04934325,38804.0,38780.0,0.02007114]
[1643726252043,0.04934325,38798.0,38780.0,4.4e-07]
[1643726252226,0.04934325,38798.0,38771.0,0.01]
[1643726252227,1.23319694,38795.0,38771.0,0.01]
[1643726252421,0.335886,38783.0,38771.0,0.35663]
[1643726252725,0.0431,38791.0,38772.0,0.25378584]
[1643726252921,0.1,38788.0,38775.0,0.00175161]
[1643726253120,0.08291046,38790.0,38775.0,0.00175161]
[1643726253521,0.08291046,38790.0,38785.0,0.12897617]
[1643726253721,0.348953,38789.0,38781.0,0.27030783]
[1643726253922,0.0431,38797.0,38781.0,0.27030783]
[1643726253923,0.0431,38797.0,38782.0,0.25378584]
[1643726254121,0.0431,38797.0,38786.0,0.00175131]
[1643726254323,0.03879001,38797.0,38786.0,0.00175131]
[1643726254522,0.25378584,38796.0,38786.0,0.00175131]
[1643726254726,1.25,38794.0,38754.0,0.00035342]
[1643726254926,0.07922861,38779.0,38755.0,0.13796272]
[1643726255123,0.348953,38778.0,38755.0,0.13796272]
[1643726255322,0.10197912,38773.0,38755.0,0.13796272]
[1643726255522,0.348953,38772.0,38755.0,0.13796272]
[1643726255757,0.348953,38772.0,38756.0,0.11469587]
[1643726256059,0.25378584,38784.0,38755.0,0.13796272]
[1643726256060,0.52710167,38784.0,38755.0,0.00678047]
[1643726256357,0.19088,38782.0,38758.0,0.1]
[1643726256557,0.348953,38781.0,38771.0,0.005]
[1643726256761,0.348953,38781.0,38773.0,0.24979186]
[1643726257057,0.348953,38781.0,38771.0,0.005]
[1643726257058,0.10365041,38774.0,38771.0,0.005]
[1643726257361,0.348953,38773.0,38771.0,0.005]
[1643726257757,0.14778,38774.0,38771.0,0.00673598]
[1643726258557,0.19704,38773.0,38771.0,0.00673598]
[1643726258759,0.02150993,38783.0,38771.0,0.25640588]
[1643726258961,0.02150993,38783.0,38772.0,0.078932]
[1643726258962,0.00136118,38782.0,38772.0,0.078932]
[1643726259159,0.00136118,38782.0,38773.0,0.25140588]
[1643726259407,0.00136118,38782.0,38774.0,0.07892]
[1643726259607,0.00136118,38782.0,38775.0,0.25140588]
[1643726259806,0.00136118,38782.0,38777.0,0.40022415]
[1643726260011,0.002,38800.0,38779.0,1.25]
[1643726260211,0.002,38800.0,38781.0,1.25]
[1643726260212,0.00136139,38782.0,38781.0,1.25]
[1643726260408,0.00136139,38782.0,38781.0,0.078899]
[1643726260608,0.00136139,38782.0,38781.0,0.128899]
[1643726261011,6.139e-05,38782.0,38781.0,1.23030488]
[1643726261209,0.02182656,38794.0,38782.0,1.25]
[1643726261410,0.39215666,38791.0,38778.0,0.00173581]
[1643726261611,0.25140588,38790.0,38778.0,0.00173581]
[1643726261813,0.348953,38789.0,38778.0,0.00173581]
[1643726262013,0.05,38786.0,38778.0,0.00173581]
[1643726262210,0.392053,38785.0,38778.0,0.00173581]
[1643726262410,0.392053,38785.0,38771.0,0.005]
[1643726262411,0.325211,38775.0,38771.0,0.005]
[1643726263010,1.0,38774.0,38770.0,0.02614233]
[1643726263265,1.0,38774.0,38754.0,0.00035342]
[1643726263266,1.248953,38773.0,38754.0,0.00035342]
[1643726263469,0.02190791,38771.0,38754.0,0.00035342]
[1643726263669,0.09439716,38757.0,38754.0,0.00035342]
[1643726264465,0.09439716,38757.0,38740.0,0.009184]
[1643726264466,0.88286802,38755.0,38740.0,0.009184]
[1643726264671,0.88286802,38755.0,38728.0,0.01342624]
[1643726264672,0.09627779,38744.0,38722.0,0.00078672]
[1643726264867,0.09203994,38723.0,38722.0,1.00078672]
[1643726265074,0.040545,38723.0,38722.0,1.07988872]
[1643726265467,0.040545,38723.0,38721.0,0.0109563]
[1643726265666,0.040545,38723.0,38701.0,0.47]
[1643726265667,0.60045688,38722.0,38701.0,0.47]
[1643726265875,0.0007748,38721.0,38701.0,0.05]
[1643726266065,0.0007748,38721.0,38711.0,0.01823127]
[1643726266266,0.349051,38720.0,38710.0,0.00104966]
[1643726266468,0.0007748,38721.0,38710.0,0.00104966]
[1643726266666,0.09373946,38719.0,38710.0,0.00104966]
[1643726266900,0.0396982,38719.0,38711.0,1.15]
[1643726267098,0.08472793,38714.0,38712.0,0.29884343]
[1643726267298,0.0007748,38721.0,38710.0,0.05]
[1643726267499,0.0007748,38721.0,38713.0,0.00104957]
[1643726267697,0.0007748,38721.0,38720.0,1.37780676]
[1643726268003,4.8e-06,38721.0,38720.0,1.599041]
[1643726268803,0.02198498,38735.0,38720.0,1.749041]
[1643726268804,9.78e-06,38735.0,38720.0,1.749041]
[1643726269003,0.49786978,38753.0,38734.0,0.2]
[1643726269201,0.49786978,38753.0,38750.0,0.15421418]
[1643726269202,0.09852,38751.0,38750.0,0.15421418]
[1643726269401,0.09852,38751.0,38750.0,0.20421418]
[1643726269402,0.35508,38751.0,38750.0,0.20421418]
[1643726269599,0.35508,38751.0,38750.0,0.15421418]
[1643726269803,0.04689981,38758.0,38751.0,1.25]
[1643726270000,0.00136063,38772.0,38756.0,0.05]
[1643726270200,0.00136063,38772.0,38768.0,1.05]
[1643726270399,0.00136063,38772.0,38768.0,0.348523]
[1643726270672,0.00136063,38772.0,38759.0,0.05]
[1643726270673,0.00136063,38772.0,38759.0,0.049]
[1643726270870,0.37910715,38776.0,38761.0,0.22716585]
[1643726270871,0.38010715,38776.0,38761.0,0.22716585]
[1643726271071,0.00136127,38772.0,38767.0,0.00172885]
[1643726271371,0.00136127,38772.0,38768.0,0.398523]
[1643726271771,0.0001,38769.0,38768.0,2.04348475]
[1643726271971,0.20348732,38792.0,38768.0,0.828523]
[1643726272171,0.00136127,38772.0,38769.0,0.29638752]
[1643726272371,0.08998049,38771.0,38770.0,0.348488]
[1643726272770,0.08998049,38771.0,38769.0,0.05]
[1643726272971,0.08998049,38771.0,38767.0,0.00172885]
[1643726272972,0.30818367,38771.0,38767.0,0.00172885]
[1643726273176,0.34906,38770.0,38749.0,0.00010838]
[1643726273371,0.24797662,38770.0,38749.0,0.00010838]
[1643726273570,1.25,38769.0,38744.0,0.1]
[1643726273770,0.32631313,38764.0,38748.0,0.30588873]
[1643726273970,0.005,38763.0,38749.0,0.398711]
[1643726274173,0.005,38776.0,38749.0,0.348711]
[1643726274404,0.09435098,38768.0,38748.0,0.30588873]
[1643726274600,0.09075038,38762.0,38754.0,0.00105261]
[1643726274800,0.05,38776.0,38755.0,0.156167]
[1643726274801,0.005,38761.0,38755.0,0.156167]
[1643726274999,0.2834173,38767.0,38761.0,0.12842097]
[1643726275198,0.35406,38766.0,38754.0,0.00105261]
[1643726275398,0.005,38765.0,38754.0,0.00105261]
[1643726275598,0.37786345,38767.0,38751.0,0.4185989]
[1643726275802,0.005,38766.0,38758.0,0.0010525]
[1643726276003,0.34906,38765.0,38758.0,0.0010525]
[1643726276201,0.005,38764.0,38758.0,0.0010525]
[1643726276400,0.6247032,38763.0,38758.0,0.0010525]
[1643726276599,0.005,38762.0,38758.0,0.0010525]
[1643726276800,0.005,38762.0,38742.0,0.01824982]
[1643726276801,0.69426885,38761.0,38742.0,0.01824982]
[1643726277002,0.69426885,38761.0,38739.0,0.24709653]
[1643726277003,0.005,38760.0,38739.0,0.24709653]
[1643726277200,0.34906,38759.0,38739.0,0.00010841]
[1643726277399,0.22347663,38753.0,38742.0,0.28042191]
[1643726277602,0.005,38752.0,38743.0,0.24698812]
[1643726277800,0.005,38763.0,38742.0,0.28042191]
[1643726277999,0.34906,38762.0,38743.0,0.24698812]
[1643726278251,0.005,38761.0,38746.0,0.00173187]
[1643726278451,0.107612,38768.0,38746.0,0.00173187]
[1643726278452,0.38176302,38758.0,38746.0,0.00173187]
[1643726278648,0.005,38757.0,38746.0,0.00173187]
[1643726279250,0.20221009,38778.0,38746.0,0.00173187]
[1643726279251,0.064489,38784.0,38756.0,0.22629507]
[1643726279450,0.064489,38784.0,38748.0,1.25]
[1643726279451,0.0013587,38774.0,38768.0,0.1359057]
[1643726279849,0.0013587,38774.0,38768.0,0.2359057]
[1643726280050,0.0013587,38774.0,38769.0,0.2685845]
[1643726280352,0.0013587,38774.0,38770.0,0.398502]
[1643726280549,0.03198,38786.0,38775.0,0.14617597]
[1643726280550,0.014295,38786.0,38775.0,0.14617597]
[1643726280754,0.014295,38786.0,38775.0,0.19617597]
[1643726280954,0.014295,38786.0,38776.0,0.59542012]
[1643726281350,0.014295,38786.0,38782.0,0.57566982]
[1643726281549,0.014295,38786.0,38783.0,0.49443497]
[1643726282021,0.014295,38786.0,38771.0,0.24698812]
[1643726282221,0.014295,38786.0,38766.0,0.24698812]
[1643726282720,0.01398418,38786.0,38780.0,0.28652576]
[1643726282919,0.01398418,38786.0,38781.0,0.348382]
[1643726283319,0.01398418,38786.0,38781.0,0.05]
[1643726283523,0.08078843,38785.0,38769.0,0.00173136]
[1643726283720,0.08078843,38785.0,38770.0,0.348483]
[1643726283922,0.08779719,38771.0,38769.0,0.00173136]
[1643726284121,0.08779719,38771.0,38769.0,0.00105206]
[1643726284321,0.1,38776.0,38769.0,0.00105206]
[1643726284523,0.01398418,38786.0,38770.0,0.348491]
[1643726284720,0.01398418,38786.0,38771.0,0.24698812]
[1643726284919,0.01398418,38786.0,38769.0,0.00105206]
[1643726285125,0.05,38784.0,38769.0,0.00105206]
[1643726285321,0.63914812,38783.0,38755.0,0.0031]
[1643726285520,0.10368045,38770.0,38769.0,0.00173196]
[1643726285750,0.00136062,38779.0,38769.0,0.00173196]
[1643726286154,0.00136062,38779.0,38773.0,0.27816071]
[1643726286549,0.1,38783.0,38773.0,0.32816071]
[1643726286749,0.00136062,38778.0,38773.0,0.05]
[1643726286948,0.00136062,38778.0,38772.0,0.05]
[1643726287153,0.00136062,38778.0,38773.0,0.24698812]
[1643726287351,0.00136062,38778.0,38774.0,0.348457]
[1643726287651,0.01398418,38786.0,38775.0,0.24698812]
[1643726287848,0.01398418,38786.0,38773.0,0.1]
[1643726287849,0.00136062,38777.0,38773.0,0.05]
[1643726288049,0.00136062,38777.0,38776.0,0.35260175]
[1643726288249,0.17338725,38797.0,38776.0,0.35260175]
[1643726288250,0.24698812,38791.0,38777.0,1.2]
[1643726288452,0.001,38797.0,38778.0,1.93849612]
[1643726288654,0.6278,38817.0,38786.0,0.05]
[1643726288850,0.064445,38826.0,38786.0,0.05]
[1643726288851,0.15599606,38816.0,38794.0,0.05]
[1643726289053,0.001,38822.0,38793.0,0.05]
[1643726289054,0.27294931,38810.0,38795.0,0.59521012]
[1643726289252,0.27294931,38810.0,38788.0,0.04127682]
[1643726289253,0.4501366,38804.0,38798.0,0.13945648]
[1643726289507,0.4501366,38804.0,38788.0,0.45543027]
[1643726289508,0.10260367,38798.0,38788.0,0.0595557]
[1643726289710,0.0735997,38791.0,38789.0,0.05]
[1643726289908,0.0735997,38791.0,38787.0,0.42]
[1643726290105,0.05,38808.0,38794.0,0.01844334]
[1643726290307,0.34906,38807.0,38796.0,0.14088446]
[1643726290511,0.1485498,38814.0,38794.0,0.01844334]
[1643726290512,0.33289418,38804.0,38794.0,0.01844334]
[1643726290908,0.33289418,38804.0,38788.0,0.24698812]
[1643726291106,0.09808258,38784.0,38773.0,0.24698812]
[1643726291311,0.5976,38802.0,38774.0,0.348453]
[1643726291514,0.55609151,38804.0,38786.0,0.146068]
[1643726291515,0.00068201,38798.0,38786.0,0.146068]
[1643726291708,0.37401732,38797.0,38787.0,0.24698812]
[1643726291906,0.37401732,38797.0,38786.0,0.146068]
[1643726292108,0.00068201,38798.0,38787.0,0.24698812]
[1643726292310,0.00068201,38798.0,38788.0,0.24480033]
[1643726292509,0.001,38822.0,38789.0,1.23508912]
[1643726292709,0.001,38822.0,38790.0,0.1]
[1643726292710,0.00135722,38794.0,38790.0,0.1]
[1643726292908,0.00135722,38794.0,38791.0,0.59524612]
[1643726293163,0.00135722,38794.0,38791.0,0.398258]
[1643726293359,0.05,38821.0,38793.0,1.25]
[1643726293360,0.09934325,38820.0,38793.0,1.25]
[1643726293559,0.25656,38819.0,38794.0,0.24698812]
[1643726293758,0.25656,38819.0,38794.0,0.29698812]
[1643726293961,0.35656,38819.0,38794.0,0.29698812]
[1643726294158,0.39906648,38799.0,38794.0,0.24698812]
[1643726294361,0.39906648,38799.0,38789.0,0.14769425]
[1643726294759,0.26742329,38809.0,38789.0,0.14769425]
[1643726294960,0.30656,38819.0,38790.0,0.24698812]
[1643726295259,0.00068053,38796.0,38790.0,0.24698812]
[1643726295459,0.00068053,38796.0,38782.0,0.24698812]
[1643726295661,0.00068053,38796.0,38783.0,0.40112936]
[1643726295859,0.00068053,38796.0,38791.0,0.2683371]
[1643726296061,0.1,38809.0,38792.0,0.59525412]
[1643726296261,0.00135412,38796.0,38793.0,0.12626275]
[1643726296465,0.00135412,38796.0,38791.0,0.2683371]
[1643726296665,0.08372176,38794.0,38784.0,0.24698812]
[1643726296901,0.00135412,38796.0,38789.0,0.32448906]
[1643726297104,0.00135412,38796.0,38782.0,0.00694085]
[1643726297105,5.412e-05,38796.0,38790.0,0.61319155]
[1643726297403,0.1,38821.0,38790.0,0.61319155]
[1643726297404,0.001,38822.0,38790.0,0.61319155]
[1643726297604,0.001,38822.0,38791.0,0.07896383]
[1643726297804,0.001,38822.0,38821.0,0.15639106]
[1643726298003,0.001,38822.0,38799.0,0.04828736]
[1643726298205,0.00336711,38831.0,38807.0,0.39299457]
[1643726298407,0.00336711,38831.0,38821.0,0.30447819]
[1643726298606,0.00336711,38831.0,38822.0,0.22541353]
[1643726298804,0.00336711,38831.0,38823.0,0.25031424]
[1643726299010,0.00336711,38831.0,38824.0,0.347925]
[1643726299205,0.12633514,38851.0,38826.0,1.25]
[1643726299407,0.7708,38853.0,38826.0,1.25]
[1643726299408,0.1861,38855.0,38827.0,0.59819424]
[1643726299606,0.25277084,38851.0,38840.0,0.28084791]
[1643726299907,0.25277084,38851.0,38827.0,0.35031424]
[1643726299908,0.00135103,38843.0,38828.0,0.25031424]
[1643726300205,0.09378162,38860.0,38841.0,0.14256936]
[1643726300206,0.16901685,38859.0,38841.0,0.14256936]
[1643726300406,0.16901685,38859.0,38842.0,0.25031424]
[1643726300407,0.60562,38858.0,38842.0,0.25031424]
[1643726300658,0.14778,38859.0,38842.0,0.25031424]
[1643726300659,0.14778,38859.0,38842.0,0.30031424]
[1643726300849,0.14778,38859.0,38852.0,0.21380689]
[1643726301051,0.1029249,38857.0,38852.0,0.05]
[1643726301250,0.41201156,38856.0,38852.0,0.05]
[1643726301453,0.08275802,38840.0,38836.0,0.25031424]
[1643726301656,0.08275802,38840.0,38827.0,0.25031424]
[1643726301657,0.08465211,38834.0,38827.0,0.25031424]
[1643726301852,0.08465211,38834.0,38820.0,0.1]
[1643726301853,0.14934325,38852.0,38828.0,0.347872]
[1643726302049,0.78633011,38854.0,38828.0,0.347872]
[1643726302050,0.27111488,38840.0,38828.0,0.25080038]
[1643726302250,0.064372,38845.0,38828.0,0.25080038]
[1643726302251,0.29063734,38844.0,38828.0,0.25025038]